Cogmind - Beta 11 X5 @@@ ROGUE MODE // 2021.06.06 @ 16:55:28 Player: cptwinky Result: Escaped! Performance ------------- Evolutions (9) 4500 Regions Visited (13) 2600 Robots Destroyed (20) 100 Value Destroyed (662) 662 Prototype IDs (3) 60 Alien Tech Used (0) 0 Bonus (13794) 13794 TOTAL SCORE: 21716 Bonus ------- Pacifist 834 High Alert Combat Kills 50 Win 3000 Win Speed 9910 Cogmind --------- Core Integrity 1514/1600 Matter 290/300 Energy 313/355 System Corruption 4% Temperature Cool (4) Movement Flying (36) Location To Epsilon Eridani Parts ------- > --- POWER (2) -------- Deuterium Engine Light Particle Reactor > --- PROPULSION (8) --- Impulse Thruster Array Impulse Thruster Array Impulse Thruster Array Impulse Thruster Array > --- UTILITY (13) ----- Small Storage Unit Enhanced Optical Array Advanced Sensor Array Advanced Signal Interpreter Advanced Terrain Scan Processor Advanced Melee Analysis Suite Transmission Jammer Advanced Reaction Control System Improved Medium Armor Plating Hacking Suite Advanced Hacking Suite Advanced Hacking Suite Advanced Hacking Suite > --- WEAPON (2) ------- Heavy Shock Bomb Launcher Power Maul > --- INVENTORY (8) ---- Field Propulsion Drive Stasis Canceller Reaction Control System Advanced Reaction Control System Improved Medium Armor Plating Heavy Plasma Cannon Advanced Datajack Peak State ------------ > --- POWER ------------ Deuterium Engine Light Particle Reactor > --- PROPULSION ------- Impulse Thruster Array Impulse Thruster Array Impulse Thruster Array Impulse Thruster Array > --- UTILITY ---------- Small Storage Unit Enhanced Optical Array Advanced Sensor Array Advanced Signal Interpreter Advanced Terrain Scan Processor Advanced Melee Analysis Suite Transmission Jammer Advanced Reaction Control System Improved Medium Armor Plating Hacking Suite Advanced Hacking Suite Advanced Hacking Suite Advanced Hacking Suite > --- WEAPON ----------- Heavy Shock Bomb Launcher Power Maul > --- INVENTORY -------- Field Propulsion Drive Stasis Canceller Reaction Control System Advanced Reaction Control System Improved Medium Armor Plating Heavy Plasma Cannon Advanced Datajack [Rating: 151] Favorites ----------- Power Backup Power III Engine Backup Power III Reactor Light Particle Reactor Propulsion Impulse Thruster Array Treads Light Treads Flight Unit Impulse Thruster Array Utility Hacking Suite Device Transmission Jammer Storage Small Storage Unit Processor Advanced Terrain Scan Processor Hackware Hacking Suite Protection Hardened Light Armor Plating Weapon Power Maul Energy Gun Backup Laser III Energy Cannon Heavy Plasma Cannon Launcher Heavy Shock Bomb Launcher Special Weapon Welding Torch Impact Weapon Power Maul Build | -11 -10 -10 -9 -8 -7 -6 -5 -5 -5 -4 -3 -2 -1 ------- Run | Scr Mat Min Mat Mat Fac Fac Fac Was Fac Fac Res Res Acc Slots Evolved 18 | . . . 2 2 2 2 2 . . 2 2 2 2 Power 1 | . . . . . . . 1 . . . . . . Propulsion 6 | . . . . 1 . . 1 . . . 2 2 . Utility 11 | . . . 2 1 2 2 . . . 2 . . 2 Weapon . | . . . . . . . . . . . . . . Parts Attached 57 | 3 . . 7 3 5 10 2 . 4 7 4 5 7 Power 4 | 1 . . . . . . . . 1 . . . 2 Engine 3 | 1 . . . . . . . . 1 . . . 1 Core . | . . . . . . . . . . . . . . Reactor 1 | . . . . . . . . . . . . . 1 Propulsion 17 | 2 . . 2 1 2 5 1 . . 2 1 1 . Treads 2 | 2 . . . . . . . . . . . . . Leg . | . . . . . . . . . . . . . . Wheel . | . . . . . . . . . . . . . . Hover . | . . . . . . . . . . . . . . Flight 15 | . . . 2 1 2 5 1 . . 2 1 1 . Utility 28 | . . . 4 1 2 3 1 . 3 5 2 3 4 Device 10 | . . . 1 1 . 1 . . 1 2 1 1 2 Storage 1 | . . . 1 . . . . . . . . . . Processor 6 | . . . 1 . . 1 . . . 1 1 1 1 Hackware 7 | . . . . . 1 1 1 . 1 1 . 1 1 Protection 4 | . . . 1 . 1 . . . 1 1 . . . Artifact . | . . . . . . . . . . . . . . Weapon 8 | . . . 1 1 1 2 . . . . 1 1 1 Energy Gun 1 | . . . . 1 . . . . . . . . . Energy Cannon 1 | . . . . . . . . . . . 1 . . Ballistic Gun . | . . . . . . . . . . . . . . Ballistic Cannon . | . . . . . . . . . . . . . . Launcher 2 | . . . . . . 1 . . . . . . 1 Special Weapon 1 | . . . 1 . . . . . . . . . . Impact Weapon 3 | . . . . . 1 1 . . . . . 1 . Slashing Weapon . | . . . . . . . . . . . . . . Piercing Weapon . | . . . . . . . . . . . . . . Special Melee Weapon . | . . . . . . . . . . . . . . Unidentified Prototypes 1 | . . . . . 1 . . . . . . . . Parts Lost 5 | . . . . . . 1 . . . 1 1 . 2 Power 1 | . . . . . . . . . . . . . 1 Propulsion 1 | . . . . . . 1 . . . . . . . Utility 3 | . . . . . . . . . . 1 1 . 1 Weapon . | . . . . . . . . . . . . . . Highest Loss Streak 2 | . . . . . . 1 . . . 1 1 . 2 Average Slot Usage (%) 85 | . 42 42 70 95 94 91 77 82 86 84 77 80 82 Engine 7 | . 14 14 11 9 7 6 5 5 11 10 9 8 5 Flight 16 | . . . 12 27 23 18 12 17 17 11 14 17 16 Device 14 | . . . 11 17 15 13 8 5 9 19 14 13 14 Storage 5 | . . . 9 9 7 6 5 5 5 5 4 4 4 Processor 10 | . . . 3 9 7 13 11 11 6 6 12 15 15 Hackware 12 | . . . . . 7 13 14 17 21 20 13 9 12 Protection 7 | . . . 3 9 14 13 11 11 5 5 4 4 4 Special Weapon 1 | . . . 8 9 2 . . . . . . . . Impact Weapon 4 | . . . . . 4 6 5 5 5 5 3 3 4 Naked Turns . | . . . . . . . . . . . . . . Heaviest Build 51 | 3 3 3 13 16 18 19 19 17 26 30 37 40 51 Greatest Support 64 | 3 3 3 14 18 20 24 30 30 30 38 48 64 64 Greatest Overweight (x) 1 | . . . . . . 1 . . . . . . . Average Overweight (x) . | . . . . . . . . . . . . . . Largest Inventory Capacity 8 | 5 5 5 8 8 8 8 8 8 8 8 8 8 8 Average Capacity 7 | 5 5 5 7 8 8 8 8 8 8 8 8 8 8 Most Carried 8 | 1 1 1 8 8 8 8 8 8 8 8 8 6 7 Average Carried 6 | . 1 1 5 7 7 7 7 7 7 7 7 5 5 Final Capacity 8 | 5 5 5 8 8 8 8 8 8 8 8 8 8 8 Final Carried 8 | 1 1 1 8 8 8 8 7 8 8 8 8 6 7 Class Distribution -------------------- 33% | Hacker-Ninja 26% | Hacker-Sprinter 22% | Sprinter 13% | Hacker-Mutant Dominant Class ---------------- Mutant | -10/Materials Mutant | -10/Mines Sprinter | -9/Materials Sprinter | -8/Materials Sprinter | -7/Factory Hacker-Sprinter | -6/Factory Hacker-Sprinter | -5/Factory Hacker-Sprinter | -5/Waste Hacker-Sprinter | -5/Factory Hacker-Mutant | -4/Factory Hacker-Ninja | -3/Research Hacker-Ninja | -2/Research Hacker-Ninja | -1/Access Resources | -11 -10 -10 -9 -8 -7 -6 -5 -5 -5 -4 -3 -2 -1 ----------- Run | Scr Mat Min Mat Mat Fac Fac Fac Was Fac Fac Res Res Acc Matter Collected 787 | 115 . . . . 134 126 . . . 147 114 . 151 Remotely . | . . . . . . . . . . . . . . Salvage Created 1012 | . . . . . 134 178 . . . 147 114 . 439 Parts 32 | . . . . . 4 3 . . . 1 . . 24 Haulers Intercepted 2 | . . . . . 2 . . . . . . . . Recyclers Shooed 1 | . . . . . . . . . . 1 . . . Parts Field Recycled . | . . . . . . . . . . . . . . Retrieved Matter . | . . . . . . . . . . . . . . Parts Self-Destructed . | . . . . . . . . . . . . . . Prevented . | . . . . . . . . . . . . . . Kills | -11 -10 -10 -9 -8 -7 -6 -5 -5 -5 -4 -3 -2 -1 ------- Run | Scr Mat Min Mat Mat Fac Fac Fac Was Fac Fac Res Res Acc Combat Hostiles Destroyed 9 | . . . . . . 3 . . . . . . 6 Melee 1 | . . . . . . . . . . . . . 1 AOE 7 | . . . . . . 3 . . . . . . 4 Classes Destroyed 7 | . . . . . 2 2 . . . . 1 . 2 Worker 1 | . . . . . . . . . . . . . 1 Hauler 2 | . . . . . 2 . . . . . . . . Recycler 3 | . . . . . . 1 . . . 1 . . 1 Operator 1 | . . . . . . . . . . . 1 . . Watcher 4 | . . . . . 1 . . . . . 2 . 1 Swarmer 8 | . . . . . . 3 . . . . . . 5 Programmer 1 | . . . . . . . . . . . . . 1 Best Kill Streak 7 | . . . . . 1 3 . . . 1 1 . 7 Combat Bots Only 5 | . . . . . . 3 . . . . . . 5 Max Kills in Single Turn 5 | . . . . . 1 3 . . . 1 1 . 5 Gunslinging . | . . . . . . . . . . . . . . Exploded 4 | . . . . . . 3 . . . . . . 4 Melee 1 | . . . . . . . . . . . . . 1 Uniques/NPCs Destroyed . | . . . . . . . . . . . . . . Combat | -11 -10 -10 -9 -8 -7 -6 -5 -5 -5 -4 -3 -2 -1 -------- Run | Scr Mat Min Mat Mat Fac Fac Fac Was Fac Fac Res Res Acc Damage Taken 1285 | . . 106 30 84 72 245 . . 41 145 . . 562 Core 242 | . . 26 . 35 16 22 . . 41 16 . . 86 Absorbed by Shields . | . . . . . . . . . . . . . . Core Remaining (%) 96 | 100 . 89 100 93 97 97 . . 95 98 100 100 94 Volleys Fired 28 | . . . . 4 15 1 . . . . 4 . 4 Largest 1 | . . . . 1 1 1 . . . . 1 . 1 Hottest 90 | . . . . 40 40 39 . . . . 90 . 46 Shots Fired 28 | . . . . 4 15 1 . . . . 4 . 4 Gun 18 | . . . . 3 15 . . . . . . . . Cannon 4 | . . . . . . . . . . . 4 . . Launcher 5 | . . . . . . 1 . . . . . . 4 Special 1 | . . . . 1 . . . . . . . . . Kinetic . | . . . . . . . . . . . . . . Thermal 23 | . . . . 4 15 . . . . . 4 . . Explosive 1 | . . . . . . 1 . . . . . . . Electromagnetic 4 | . . . . . . . . . . . . . 4 Robot Hit Streak 2 | . . . . 1 2 . . . . . . . 2 Robot Miss Streak 3 | . . . . 3 3 . . . . . . . 2 Penetration Max . | . . . . . . . . . . . . . . Secondary Targets . | . . . . . . . . . . . . . . Shots Hit Robots 32 | . . . . 1 9 5 . . . 3 4 . 10 Core Hits 15 | . . . . . 2 3 . . . . . . 10 Critical Kills . | . . . . . . . . . . . . . . Critical Parts Destroyed 1 | . . . . . . . . . . . 1 . . Critical Strikes 1 | . . . . . . . . . . . 1 . . Smash 1 | . . . . . . . . . . . 1 . . Melee Attacks 55 | . . . . . 6 13 . . 4 9 12 . 11 Impact 55 | . . . . . 6 13 . . 4 9 12 . 11 Slashing . | . . . . . . . . . . . . . . Piercing . | . . . . . . . . . . . . . . Sneak Attacks 5 | . . . . . 2 1 . . . 1 . . 1 Combat Hostiles 1 | . . . . . . . . . . . . . 1 Follow-up Attacks . | . . . . . . . . . . . . . . Damage Inflicted 2039 | . . 2 . 14 331 476 . . . 159 146 . 911 Guns 93 | . . . . 14 79 . . . . . . . . Cannons . | . . . . . . . . . . . . . . Explosions 715 | . . . . . . 229 . . . . . . 486 Melee 1229 | . . . . . 252 247 . . . 159 146 . 425 Ramming 2 | . . 2 . . . . . . . . . . . Kinetic . | . . . . . . . . . . . . . . Thermal 434 | . . . . 14 79 . . . . . . . 341 Explosive 229 | . . . . . . 229 . . . . . . . Electromagnetic 145 | . . . . . . . . . . . . . 145 Impact 1229 | . . . . . 252 247 . . . 159 146 . 425 Slashing . | . . . . . . . . . . . . . . Piercing . | . . . . . . . . . . . . . . Highest Corruption 6 | . . . . . . . . 6 6 . . . 4 Average Corruption 4 | . . . . . . . . 6 6 . . . 3 Corruption Purged . | . . . . . . . . . . . . . . Effects 5 | . . . . . . . . . 1 . . . 4 Message Errors 3 | . . . . . . . . . . . . . 3 Heat Flow Errors 1 | . . . . . . . . . . . . . 1 Data Loss (major) 1 | . . . . . . . . . 1 . . . . Overload Shots . | . . . . . . . . . . . . . . Overflow Damage 506 | . . . . . 150 94 . . . 41 86 . 135 Projectiles . | . . . . . . . . . . . . . . Explosions . | . . . . . . . . . . . . . . Melee 506 | . . . . . 150 94 . . . 41 86 . 135 Knockbacks 6 | . . . . . . 4 . . . 1 1 . . Impact 6 | . . . . . . 4 . . . 1 1 . . Kinetic . | . . . . . . . . . . . . . . Secondary . | . . . . . . . . . . . . . . Self-Inflicted Damage 19 | . . 1 . . . . . . . . . . 18 Shots 1 | . . . . . . . . . . . . . 1 Rammed 1 | . . 1 . . . . . . . . . . . Targets Rammed 1 | . . 1 . . . . . . . . . . . Kicked . | . . . . . . . . . . . . . . Crushed . | . . . . . . . . . . . . . . Highest Temperature 267 | . . . . 11 . . . . . . 142 . 267 Average Temperature 67 | . . . . 7 . . . . . . 72 . 80 Received Heat Transfer 204 | . . . . 36 24 72 . . 9 27 . . 36 Siege Activations . | . . . . . . . . . . . . . . Robots Corrupted 1 | . . . . . . . . . . . . . 1 Combat Hostiles 1 | . . . . . . . . . . . . . 1 Parts Fried 17 | . . . . . 6 2 . . . . 6 . 3 Impact Corruptions 16 | . . . . . 3 3 . . . 2 4 . 4 Robots Melted . | . . . . . . . . . . . . . . Combat Hostiles . | . . . . . . . . . . . . . . Parts Melted . | . . . . . . . . . . . . . . Heat Transferred 509 | . . . . 37 222 . . . . . . . 250 Parts Sabotaged . | . . . . . . . . . . . . . . Parts Stolen . | . . . . . . . . . . . . . . Parts Stripped . | . . . . . . . . . . . . . . Power Chain Reactions 4 | . . . . . . 1 . . . . . . 3 Missiles Intercepted . | . . . . . . . . . . . . . . Alert | -11 -10 -10 -9 -8 -7 -6 -5 -5 -5 -4 -3 -2 -1 ------- Run | Scr Mat Min Mat Mat Fac Fac Fac Was Fac Fac Res Res Acc Peak Influence 670 | . 15 5 47 79 265 642 325 143 151 233 297 166 670 Initial 314 | . . 5 1 19 35 129 314 113 100 73 27 166 99 Average 184 | . 3 5 20 35 114 388 318 121 118 145 139 166 241 Maximum Alert Level 2 | . . . . . 1 2 1 . . 1 1 . 2 Low Security (%) 69 | 100 100 100 100 100 91 8 . 100 100 87 71 100 59 Level 1 23 | . . . . . 8 72 100 . . 12 28 . 17 Level 2 6 | . . . . . . 19 . . . . . . 22 Level 3 . | . . . . . . . . . . . . . . Level 4 . | . . . . . . . . . . . . . . Level 5 . | . . . . . . . . . . . . . . High Security . | . . . . . . . . . . . . . . Max Security . | . . . . . . . . . . . . . . Squads Dispatched 17 | . . . 1 2 . 4 1 . 3 2 1 . 3 Investigation 11 | . . . 1 . . 3 1 . 1 2 1 . 2 Extermination 2 | . . . . . . 1 . . . . . . 1 Reinforcement 4 | . . . . 2 . . . . 2 . . . . Assault . | . . . . . . . . . . . . . . Garrison . | . . . . . . . . . . . . . . Intercept . | . . . . . . . . . . . . . . Construction Impeded . | . . . . . . . . . . . . . . Haulers Reinforced . | . . . . . . . . . . . . . . Cargo Convoy Interrupts . | . . . . . . . . . . . . . . Stealth | -11 -10 -10 -9 -8 -7 -6 -5 -5 -5 -4 -3 -2 -1 --------- Run | Scr Mat Min Mat Mat Fac Fac Fac Was Fac Fac Res Res Acc Distress Signals 1 | . . . . . . 1 . . . . . . . Communications Jammed 17 | . . . . . . . . . . . 9 . 8 Distress Signals 17 | . . . . . . . . . . . 9 . 8 Times Spotted 118 | . 2 6 4 9 11 22 5 4 6 15 12 . 22 Peak Tracking Total 14 | . 2 6 4 8 6 10 5 4 4 6 6 . 14 Tactical Retreats 15 | . . . . . 1 3 . . . 5 2 . 4 Traps | -11 -10 -10 -9 -8 -7 -6 -5 -5 -5 -4 -3 -2 -1 ------- Run | Scr Mat Min Mat Mat Fac Fac Fac Was Fac Fac Res Res Acc Traps Triggered 2 | . . . . . . . 1 . . . 1 . . Indirectly . | . . . . . . . . . . . . . . Trap Hack Attempts . | . . . . . . . . . . . . . . Triggered . | . . . . . . . . . . . . . . Disarmed . | . . . . . . . . . . . . . . Reprogrammed 27 | . . . . . . 8 . . . . 6 . 13 Reused 4 | . . . . . . 2 . . . . . . 2 Traps Extracted . | . . . . . . . . . . . . . . Installed . | . . . . . . . . . . . . . . Triggered 4 | . . . . . . 2 . . . . . . 2 Machines | -11 -10 -10 -9 -8 -7 -6 -5 -5 -5 -4 -3 -2 -1 ---------- Run | Scr Mat Min Mat Mat Fac Fac Fac Was Fac Fac Res Res Acc Machines Disabled 7 | . . . . . . 6 . . . . 1 . . Max in Single Turn 3 | . . . . . . 3 . . . . 1 . . Garrison Access 2 | . . . . . . . . . . . . 1 1 Machines Sabotaged . | . . . . . . . . . . . . . . Garrisons Compromised . | . . . . . . . . . . . . . . Overloaded Fab Kills 2 | . . . . . . 1 . . . . . . 1 Fab Network Shutdowns . | . . . . . . . . . . . . . . Hacking | -11 -10 -10 -9 -8 -7 -6 -5 -5 -5 -4 -3 -2 -1 --------- Run | Scr Mat Min Mat Mat Fac Fac Fac Was Fac Fac Res Res Acc Machines Accessed 41 | . 1 . 3 1 4 8 1 . 2 7 6 1 7 Terminals 22 | . 1 . 1 . 2 4 1 . 1 3 4 . 5 Fabricators 5 | . . . . . . 1 . . . 2 1 . 1 Repair Stations 4 | . . . 1 . . 2 . . 1 . . . . Recycling Units 6 | . . . 1 . 2 1 . . . 1 1 . . Scanalyzers 2 | . . . . 1 . . . . . 1 . . . Garrison Access 2 | . . . . . . . . . . . . 1 1 Total Hacks 115 | . 3 . 4 6 9 26 6 . 6 24 12 2 17 Successful 69 | . 1 . 2 5 5 18 2 . 3 15 5 1 12 Failed 45 | . 1 . 2 1 4 8 4 . 3 9 7 1 5 Catastrophic 7 | . . . 1 . . 1 . . 2 1 1 . 1 Database Lockouts 1 | . 1 . . . . . . . . . . . . Manual 45 | . 3 . . . 5 9 6 . 2 9 4 . 7 Terminals 70 | . 3 . 2 . 6 15 6 . 4 12 9 . 13 Fabricators 18 | . . . . . . 4 . . . 9 2 . 3 Repair Stations 8 | . . . 1 . . 5 . . 2 . . . . Recycling Units 8 | . . . 1 . 3 2 . . . 1 1 . . Scanalyzers 8 | . . . . 6 . . . . . 2 . . . Garrison Access 3 | . . . . . . . . . . . . 2 1 Terminal Hacks 28 | . 1 . . . 1 6 2 . 1 4 4 . 9 Part Schematic 1 | . . . . . . . . . 1 . . . . Robot Analysis 1 | . 1 . . . . . . . . . . . . Open Door 1 | . . . . . . . . . . . . . 1 Level Access Points 6 | . . . . . 1 1 1 . . 1 1 . 1 Branch Access Points 2 | . . . . . . . . . . . 1 . 1 Machine Index 1 | . . . . . . . . . . . . . 1 Fabricator Index 2 | . . . . . . 1 1 . . . . . . Unreport Threat 3 | . . . . . . . . . . 3 . . . Locate Traps 1 | . . . . . . . . . . . 1 . . Reprogram Traps 8 | . . . . . . 3 . . . . 1 . 4 Registered Components 2 | . . . . . . 1 . . . . . . 1 Fabricator Hacks 7 | . . . . . . 2 . . . 5 . . . Load Schematic 3 | . . . . . . 1 . . . 2 . . . Build 4 | . . . . . . 1 . . . 3 . . . Repair Station Hacks 7 | . . . 1 . . 4 . . 2 . . . . Scan Component 3 | . . . . . . 2 . . 1 . . . . Repair 3 | . . . . . . 2 . . 1 . . . . Refit 1 | . . . 1 . . . . . . . . . . Recycling Unit Hacks 5 | . . . 1 . 2 1 . . . 1 . . . Retrieve Components 5 | . . . 1 . 2 1 . . . 1 . . . Scanalyzer 7 | . . . . 5 . . . . . 2 . . . Insert Component 3 | . . . . 2 . . . . . 1 . . . Analyze 4 | . . . . 3 . . . . . 1 . . . Garrison Access Hacks 2 | . . . . . . . . . . . . 1 1 Seal Access 2 | . . . . . . . . . . . . 1 1 Unauthorized Hacks 13 | . . . . . 2 5 . . . 3 1 . 2 Terminals 9 | . . . . . 2 3 . . . 2 1 . 1 Track 1 | . . . . . . 1 . . . . . . . Assimilate 1 | . . . . . . 1 . . . . . . . Botnet 7 | . . . . . 2 1 . . . 2 1 . 1 Fabricators 4 | . . . . . . 2 . . . 1 . . 1 Prioritize 2 | . . . . . . 1 . . . 1 . . . Overload 2 | . . . . . . 1 . . . . . . 1 Repair Stations . | . . . . . . . . . . . . . . Recycling Units . | . . . . . . . . . . . . . . Scanalyzers . | . . . . . . . . . . . . . . Garrison Access . | . . . . . . . . . . . . . . Data Cores Recovered . | . . . . . . . . . . . . . . Used . | . . . . . . . . . . . . . . Hacking Detections 36 | . 1 . 2 1 4 7 1 . 2 6 5 1 6 Full Trace Events 9 | . . . 1 . . 2 1 . 1 2 1 . 1 Feedback Events 1 | . . . . . . . . . . . 1 . . Hackware Fried 1 | . . . . . . . . . . . 1 . . Feedback Blocked . | . . . . . . . . . . . . . . Robot Schematics Acquired . | . . . . . . . . . . . . . . Robots Built . | . . . . . . . . . . . . . . Matter . | . . . . . . . . . . . . . . Time . | . . . . . . . . . . . . . . Total Robot Build Rating . | . . . . . . . . . . . . . . Part Schematics Acquired 4 | . . . . 2 . . . . 1 1 . . . Parts Built 4 | . . . . . . 1 . . . 3 . . . Matter 914 | . . . . . . 146 . . . 768 . . . Time 329 | . . . . . . 73 . . . 256 . . . Total Part Build Rating 27 | . . . . . . 3 . . . 24 . . . Parts Repaired 3 | . . . . . . 2 . . 1 . . . . Time 142 | . . . . . . 126 . . 16 . . . . Parts Recycled . | . . . . . . . . . . . . . . Recycled Matter . | . . . . . . . . . . . . . . Retrieved Matter . | . . . . . . . . . . . . . . Retrieved Components 6 | . . . 2 . 2 1 . . . 1 . . . Parts Scanalyzed 3 | . . . . 2 . . . . . 1 . . . Part Schematics Acquired 3 | . . . . 2 . . . . . 1 . . . Parts Damaged . | . . . . . . . . . . . . . . Bothacking | -11 -10 -10 -9 -8 -7 -6 -5 -5 -5 -4 -3 -2 -1 ------------ Run | Scr Mat Min Mat Mat Fac Fac Fac Was Fac Fac Res Res Acc Used RIF Installer . | . . . . . . . . . . . . . . Robots Hacked . | . . . . . . . . . . . . . . Non-combat . | . . . . . . . . . . . . . . Combat . | . . . . . . . . . . . . . . Robot Hacks Applied . | . . . . . . . . . . . . . . Relay Couplers Released . | . . . . . . . . . . . . . . Robots Rewired . | . . . . . . . . . . . . . . Allies Hacked . | . . . . . . . . . . . . . . Hacks Repelled . | . . . . . . . . . . . . . . Allies | -11 -10 -10 -9 -8 -7 -6 -5 -5 -5 -4 -3 -2 -1 -------- Run | Scr Mat Min Mat Mat Fac Fac Fac Was Fac Fac Res Res Acc Total Allies 1 | . . . . . . 1 . . . . . . . Largest Group 1 | . . . . . . 1 . . . . . . . Highest-Rated Group 10 | . . . . . . 10 . . . . . . . Highest-Rated Ally 10 | . . . . . . 10 . . . . . . . Total Orders . | . . . . . . . . . . . . . . Ally Attacks . | . . . . . . . . . . . . . . Total Damage . | . . . . . . . . . . . . . . Kills . | . . . . . . . . . . . . . . Allies Corrupted . | . . . . . . . . . . . . . . Allies Melted . | . . . . . . . . . . . . . . Intel | -11 -10 -10 -9 -8 -7 -6 -5 -5 -5 -4 -3 -2 -1 ------- Run | Scr Mat Min Mat Mat Fac Fac Fac Was Fac Fac Res Res Acc Robot Analysis Total 1 | . 1 . . . . . . . . . . . . Derelict Logs Recovered . | . . . . . . . . . . . . . . Drone Launches . | . . . . . . . . . . . . . . Drone Recoveries . | . . . . . . . . . . . . . . Exploration | -11 -10 -10 -9 -8 -7 -6 -5 -5 -5 -4 -3 -2 -1 ------------- Run | Scr Mat Min Mat Mat Fac Fac Fac Was Fac Fac Res Res Acc Turns Passed 2011 | 21 17 11 95 93 275 338 43 25 110 373 212 83 315 Spaces Moved 3816 | 31 34 21 158 211 572 607 114 70 250 575 400 208 565 Core 151 | 31 34 21 65 . . . . . . . . . . Treads . | . . . . . . . . . . . . . . Legs . | . . . . . . . . . . . . . . Wheels . | . . . . . . . . . . . . . . Hover . | . . . . . . . . . . . . . . Flight 3665 | . . . 93 211 572 607 114 70 250 575 400 208 565 Fastest Speed 29 | 50 50 50 32 29 29 29 30 30 30 30 39 36 36 Average Speed 34 | 50 50 50 39 29 29 29 33 30 30 37 39 36 37 Slowest Speed 99 | 50 50 50 55 29 29 99 34 30 30 42 39 36 39 Overloaded Moves . | . . . . . . . . . . . . . . Propulsion Burnouts . | . . . . . . . . . . . . . . Robots Hopped 27 | . . . 3 6 1 6 . 2 3 1 4 . 1 Cave-ins Triggered . | . . . . . . . . . . . . . . Exploration Rate (%) 19 | 3 10 11 23 25 21 20 6 79 8 14 16 8 26 Regions Visited 13 Branch Regions 1 Pre-discovered Areas . | . . . . . . . . . . . . . . Known Exits Taken 5 | . . . . . 1 1 . . 1 1 1 . . Unknown Exits Taken 6 | 1 1 1 1 1 . . . . . . . 1 . Scrap Searched . | . . . . . . . . . . . . . . Spaces Dug 27 | . . . . . 2 9 . . 3 3 7 . 3 Terrain Destroyed 96 | . . . . . 2 61 . . 3 3 7 . 20 Melee 17 | . . . . . 2 3 . . 3 3 3 . 3 Projectile 4 | . . . . . . . . . . . 4 . . AOE 75 | . . . . . . 58 . . . . . . 17 Terrain Rammed . | . . . . . . . . . . . . . . Walls Destroyed . | . . . . . . . . . . . . . . Machines Disabled . | . . . . . . . . . . . . . . Actions | -11 -10 -10 -9 -8 -7 -6 -5 -5 -5 -4 -3 -2 -1 --------- Run | Scr Mat Min Mat Mat Fac Fac Fac Was Fac Fac Res Res Acc Total 4367 | 34 33 21 187 231 657 735 118 71 274 720 429 214 643 Wait 367 | . . . 10 16 47 102 . 3 16 117 . 1 55 Move 3754 | 30 33 21 152 199 569 595 114 66 243 572 391 207 562 Hop 22 | . . . 2 5 1 5 . 1 3 1 3 . 1 Pick Up 35 | 1 . . 8 3 6 5 1 1 2 4 2 . 2 Fast Attach 27 | 3 . . 6 1 3 1 . . 2 4 2 2 3 Attach 18 | . . . 1 2 1 5 1 . 1 2 1 2 2 Detach 12 | . . . 4 . . 2 . . 1 2 1 1 1 Swap 12 | . . . . . 1 4 1 . 1 1 1 1 2 Drop 27 | . . . 4 1 8 2 1 . 1 8 2 . . Fire 28 | . . . . 4 15 1 . . . . 4 . 4 Melee 55 | . . . . . 6 13 . . 4 9 12 . 11 Ram . | . . . . . . . . . . . . . . Kick . | . . . . . . . . . . . . . . Crush . | . . . . . . . . . . . . . . Escape Stasis 10 | . . . . . . . . . . . 10 . . Rewire . | . . . . . . . . . . . . . . Trap . | . . . . . . . . . . . . . . Miscellaneous . | . . . . . . . . . . . . . . Route ------- -11/Scrapyard -10/Materials -10/Mines -9/Materials -8/Materials -7/Factory (discovered 4 exits: *Fac x4) -6/Factory (discovered 4 exits: *Fac x4) -5/Factory (discovered 4 exits: Fac x4) -5/Waste -5/Factory -4/Factory (discovered 4 exits: *Res x4) -3/Research (discovered 6 exits: *Res x3 / Arm / Qua x2) -2/Research -1/Access (discovered 2 exits: *Sur / Com) To Epsilon Eridani History --------- Turn | Location | Event 2 | -11/Scrapyard | Met Revision 17 5 | -11/Scrapyard | Discovered new exit (range 15) 22 | -11/Scrapyard | Entered Materials 22 | -10/Materials | Discovered new exit (range 15) 23 | -10/Materials | Central database locked down 39 | -10/Materials | Entered Mines 45 | -10/Mines | Discovered new exit (range 11) 50 | -10/Mines | Met a Derelict bent on vengeance 50 | -10/Mines | Entered Materials 50 | -9/Materials | Evolved 2 slots: Utility x2 142 | -9/Materials | Discovered new exit (range 5) 145 | -9/Materials | Entered another Materials area 145 | -8/Materials | Evolved 2 slots: Propulsion x1, Utility x1 230 | -8/Materials | Discovered new exit (range 5) 238 | -8/Materials | Entered Factory 238 | -7/Factory | Evolved 2 slots: Utility x2 346 | -7/Factory | Identified exit to Factory 385 | -7/Factory | Build established: Sprinter 513 | -7/Factory | Entered another Factory area 513 | -6/Factory | Evolved 2 slots: Utility x2 524 | -6/Factory | Identified exit to Factory 639 | -6/Factory | Repaired Nuclear Pulse Array 756 | -6/Factory | Repaired Imp. Cesium-ion Thruster? 766 | -6/Factory | Fabricated Hacking Suite? 851 | -6/Factory | Entered another Factory area 851 | -5/Factory | Evolved 2 slots: Power x1, Propulsion x1 867 | -5/Factory | Spotted B-75 Beast 875 | -5/Factory | Identified exit to Factory 894 | -5/Factory | Manually triggered Chute Trap 894 | -5/Factory | Sucked down chute 894 | -5/Factory | Entered Waste 896 | -5/Waste | Spotted C-40 Crusher 903 | -5/Waste | Spotted C-40 Crusher 903 | -5/Waste | Spotted C-40 Crusher 906 | -5/Waste | Spotted C-40 Crusher 909 | -5/Waste | EMP discharged 912 | -5/Waste | Spotted C-40 Crusher 916 | -5/Waste | Spotted C-40 Crusher 916 | -5/Waste | Discovered new exit (range 11) 919 | -5/Waste | Entered Factory 947 | -5/Factory | Discovered exit to Factory (range 19) 1000 | -5/Factory | Repaired Hrd. Light Armor Plating 1029 | -5/Factory | Entered another Factory area 1029 | -4/Factory | Evolved 2 slots: Utility x2 1114 | -4/Factory | Fabricated Impulse Thruster Array? 1184 | -4/Factory | Fabricated Impulse Thruster Array (x1) 1253 | -4/Factory | Fabricated Impulse Thruster Array (x1) 1354 | -4/Factory | Identified exit to Research 1402 | -4/Factory | Entered Research 1402 | -3/Research | Evolved 2 slots: Propulsion x2 1495 | -3/Research | Identified exit to Armory 1495 | -3/Research | Identified exit to Quarantine 1511 | -3/Research | Identified exit to Research 1574 | -3/Research | Hacking Suite fried by hacking feedback 1614 | -3/Research | Entered another Research area 1614 | -2/Research | Evolved 2 slots: Propulsion x2 1640 | -2/Research | Discovered new exit (range 17) 1697 | -2/Research | Entered Access 1697 | -1/Access | Evolved 2 slots: Utility x2 1890 | -1/Access | Identified exit to Command 1936 | -1/Access | Identified exit to Surface 1940 | -1/Access | Build established: Hacker-Ninja 2012 | *** | Escaped! Last Messages --------------- 01989_ U-05 Engineer builds a Wall. 01990_ Destroyed Xenon Bombardment Thruster. 01990_ S-43 Plague system corrupted by crushing effect. 01991_ S-43 Plague system terminally corrupted. 01991_ Xenon Bombardment Thruster fried. 01991_ Lgt. Antimatter Reactor fried. 01993_ U-05 Engineer lays Concrete. 01994_ QQ3,V=B5QNY06Z80DMSKUEA0| 01994_ U-05 Engineer lays Concrete. 01995_ Acquired 28 matter. 01996_ Acquired 20 matter. 01996_ U-05 Engineer lays Concrete. 01998_ R-10 Processor collects Wheel. 01999_ U-05 Engineer builds a Wall. 02002_ Acquired Adv. Hacking Suite. 02003_ U-05 Engineer lays Concrete. 02009_ Connecting with Terminal... >>Open Sealed Barrier opened. 02010_ The Access Shell folds into the floor. Map ----- +----------------------------------------------------+ | ?????????????????????????????????????????????????? | | ?????????????????????????????????????????????????? | | ?????????????????????????????????????????????????? | | ?????????????????????????????????????????????????? | | ?????????????????????????????????????????????????? | | ?????????????????????????????????????????????????? | | ??????????##?????????????????????????????????????? | | ?????????? ????????????????????????????????????? | | ?????????? ????????????????????????????????????? | | ?????????? ????????????????????????????????????? | | ?????????? ????????????????????????????????????? | | ??????????# ????????????????????????????????????? | | ??????????# ????????????????????????????????????? | | ??????????# #???????????????????????????????????? | | ??????????# #???????????????????????????????????? | | ??????????# #???????????????????????????????????? | | ??????????# #???????????????????????????????????? | | ??????????# #???????????????????????????????????? | | ??????????# #?????###???????????????????????????? | | ??????????# ####### ##########??????????????????? | | ??????????# """T""" "??????????????????? | | ??????????# """ """ "????BB????????????? | | ??????????# "????BB????????????? | | ??????????# "??????????????????? | | ??????????# "" "??????????????????? | | ?#????????# @" "??????????????????? | | ?# ???????# "??????????????????? | | ?# ???????# "????BB????????????? | | ?# ???????# "????BB????????????? | | ?# ???????# "??????????????????? | | ?# ######## ####### ##########??????????????????? | | ?# # """ ## #?????###???????????????????????????? | | ?# #""T""## #???????????????????????????????????? | | ## #"" ""## #???????????????????????????????????? | | # #???????????????????????????????????? | | # #???????????????????????????????????? | | # #???????????????????????????????????? | | # #???????????????????????????????????? | | # = #???????????????????????????????????? | | # #???????????????????????????????????? | | ### #???????????????????????????????????? | | ?# #???????????????????????????????????? | | ?# +???????????????????????????????????? | | ?# #???????????????????????????????????? | | ?# " "" #???????????????????????????????????? | | # "R"" ##??????????????????????????????????? | | # """ #??????????????????????????????????? | | + #??????????????????????????????????? | | # +??????????????????????????????????? | | # #??????????????????????????????????? | +----------------------------------------------------+ Best States ------------- Heat Dissipation 52 Energy Generation 32 Energy Capacity 355 Matter Stores 300 Matter Capacity 300 Sight Range 22 Robot Scan Range 16 Terrain Scan Range 20 Terrain Scan Density 210 Jamming Range 8 Additional Mass Support 6 Armor Coverage 225 Weapon Shielding 66 Evasion (%) 76 Melee Accuracy 16 Stasis Canceling 1 Offensive Hacking 52 Defensive Hacking 12 Item Schematics ----------------- Hacking Suite | -8/Materials | Scanalyzed Imp. VTOL Module | -8/Materials | Scanalyzed Impulse Thruster Array | -5/Factory | Hacked Diametric Drive | -4/Factory | Scanalyzed Robot Schematics ------------------ None Fabricated ------------ Hacking Suite | x1 | -6/Factory Impulse Thruster Array | x1 | -4/Factory Impulse Thruster Array | x1 | -4/Factory Impulse Thruster Array | x1 | -4/Factory Alien Tech Used ----------------- None Achievements -------------- None Challenges ------------ None Game ------ Seed ModifiedInsulationRail Manual? 0 Play Time 00:35:51 Cumulative 835.6 hours Start 2021.06.06 @ 16:24:17 End 2021.06.06 @ 16:55:28 Sessions 1 Manual Loads 0 Difficulty Rogue Special Mode None Game No. 586 Rogue 582 Adventurer 4 Explorer 0 Win Type 0 Total 93 Types 71/9/4/4/2/0/0/2/1 Lore% 94 Gallery% 97 Achievement% 96 Wizard Run 0 Options --------- ASCII 0 Keyboard 1 Movement Vi Keybinds 0 Fullscreen 0 Font 16/Terminus Map View 76x50 Tactical HUD 1 Map Filters NONE Filters NONE Steam 1 RUN: 15774011-3eeb-4e19-a65f-fe8bdea801af